Cogmind - Beta 13 @@@ ROGUE MODE // 2024.03.31 @ 17:54:28 Player: double j Result: Self-destructed Performance ------------- Evolutions (2) 1000 Regions Visited (4) 800 Robots Destroyed (17) 85 Value Destroyed (442) 442 Prototype IDs (2) 40 Alien Tech Used (0) 0 Bonus (8) 8 TOTAL SCORE: 2375 Bonus ------- High Alert Combat Kills 8 Cogmind --------- Core Integrity 476/550 Matter 299/300 Energy 65/100 System Corruption 0% Temperature Warm (157) Movement Core (250) Ox4 Location -8/Materials Parts ------- > --- POWER (1) -------- (None) > --- PROPULSION (3) --- (None) > --- UTILITY (5) ------ Small Storage Unit Terrain Scanner > --- WEAPON (2) ------- Beam Rifle Particle Cannon > --- INVENTORY (8) ---- Improved Ion Engine Aluminum Leg Field Recycling Unit (0) Light Assault Rifle Maul Peak State ------------ > --- POWER ------------ Light Ion Engine > --- PROPULSION ------- Wheel Compact Wheel > --- UTILITY ---------- Small Storage Unit Terrain Scanner > --- WEAPON ----------- EM Pulse Gun Rocket Launcher > --- INVENTORY -------- Field Recycling Unit Light Assault Rifle [Rating: 8] Favorites ----------- Power Light Ion Engine Engine Light Ion Engine Propulsion Wheel Wheel Wheel Utility Small Storage Unit Device Terrain Scanner Storage Small Storage Unit Weapon EM Pulse Gun Energy Gun EM Pulse Gun Energy Cannon Particle Cannon Ballistic Gun Light Assault Rifle Launcher Rocket Launcher Impact Weapon Maul Build | -11 -10 -10 -9 -8 ------- Run | Yrd Mat Min Mat Mat Slots Evolved 4 | . . . 2 2 Power . | . . . . . Propulsion 1 | . . . . 1 Utility 3 | . . . 2 1 Weapon . | . . . . . Parts Attached 13 | 6 . 1 5 1 Power 2 | 1 . . 1 . Engine 2 | 1 . . 1 . Core . | . . . . . Reactor . | . . . . . Propulsion 2 | 2 . . . . Treads . | . . . . . Leg . | . . . . . Wheel 2 | 2 . . . . Hover . | . . . . . Flight . | . . . . . Utility 2 | 1 . . 1 . Device 1 | . . . 1 . Storage 1 | 1 . . . . Processor . | . . . . . Hackware . | . . . . . Protection . | . . . . . Artifact . | . . . . . Weapon 7 | 2 . 1 3 1 Energy Gun 2 | 1 . . . 1 Energy Cannon 1 | . . . 1 . Ballistic Gun 2 | 1 . . 1 . Ballistic Cannon . | . . . . . Launcher 1 | . . 1 . . Special Weapon . | . . . . . Impact Weapon 1 | . . . 1 . Slashing Weapon . | . . . . . Piercing Weapon . | . . . . . Special Melee Weapon . | . . . . . Unidentified Prototypes . | . . . . . Parts Lost 6 | . . . 4 2 Power 2 | . . . 1 1 Propulsion 2 | . . . 1 1 Utility . | . . . . . Weapon 2 | . . . 2 . Highest Loss Streak 2 | . . . 2 2 To Critical Strikes . | . . . . . Average Slot Usage (%) 69 | . 85 85 62 49 Engine 11 | . 14 14 9 7 Wheel 19 | . 28 28 17 6 Device 4 | . . . 7 9 Storage 11 | . 14 14 11 9 Energy Gun 8 | . 14 14 3 5 Energy Cannon 1 | . . . . 9 Ballistic Gun 4 | . 14 1 2 4 Launcher 6 | . . 12 8 . Naked Turns . | . . . . . Heaviest Build 18 | 11 11 14 16 18 Greatest Support 26 | 26 26 26 26 10 Greatest Overweight (x) 5 | . . . 1 5 Average Overweight (x) . | . . . . 1 Largest Inventory Capacity 8 | 8 8 8 8 8 Average Capacity 7 | 5 8 8 8 8 Most Carried 6 | 2 . 2 5 6 Average Carried 1 | . . . 2 4 Final Capacity 8 | 8 8 8 8 8 Final Carried 5 | . . 1 3 5 Class Distribution -------------------- 100% | Mutant Dominant Class ---------------- Mutant | -10/Materials Mutant | -10/Mines Mutant | -9/Materials Mutant | -8/Materials Resources | -11 -10 -10 -9 -8 ----------- Run | Yrd Mat Min Mat Mat Matter Collected 452 | 226 . 41 115 70 Remotely . | . . . . . Salvage Created 327 | . . 28 162 137 Parts 24 | . . 1 12 11 Haulers Intercepted . | . . . . . Recyclers Shooed . | . . . . . Parts Field Recycled . | . . . . . Retrieved Matter . | . . . . . Parts Self-Destructed . | . . . . . Prevented . | . . . . . Kills | -11 -10 -10 -9 -8 ------- Run | Yrd Mat Min Mat Mat Combat Hostiles Destroyed 13 | . . 1 10 2 Guns 1 | . . . 1 . Cannons 2 | . . . . 2 AOE 10 | . . 1 9 . Classes Destroyed 5 | . . 1 3 1 Worker 1 | . . . 1 . Builder 3 | . . . 2 1 Swarmer 4 | . . . 4 . Grunt 8 | . . 1 6 1 Sentry 1 | . . . . 1 Best Kill Streak 5 | . . 1 5 2 Combat Bots Only 4 | . . 1 4 1 Max Kills in Single Turn 4 | . . 1 4 1 Gunslinging . | . . . . . Exploded 4 | . . 1 4 . Melee . | . . . . . Uniques/NPCs Destroyed . | . . . . . Combat | -11 -10 -10 -9 -8 -------- Run | Yrd Mat Min Mat Mat Hostile Shots Fired 75 | . 15 3 22 35 Missed 32 | . 7 1 7 17 Damage Taken 667 | . 64 39 279 285 Core 177 | . 10 18 75 74 Absorbed by Shields . | . . . . . Core Remaining (%) 89 | 100 . 88 81 . Volleys Fired 38 | . . 2 19 17 Largest 2 | . . 1 1 2 Hottest 88 | . . 33 33 88 Shots Fired 42 | . . 2 19 21 Gun 17 | . . . 7 10 Cannon 11 | . . . . 11 Launcher 14 | . . 2 12 . Special . | . . . . . Kinetic 11 | . . . 7 4 Thermal 17 | . . . . 17 Explosive 14 | . . 2 12 . Electromagnetic . | . . . . . Robot Hit Streak 6 | . . 2 4 6 Robot Miss Streak 3 | . . . 3 2 Penetration Max . | . . . . . Secondary Targets . | . . . . . Shots Hit Robots 23 | . . 2 8 13 Core Hits 26 | . . 1 18 7 Critical Kills . | . . . . . Critical Parts Destroyed . | . . . . . Critical Strikes 1 | . . . . 1 Burn 1 | . . . . 1 Melee Attacks . | . . . . . Impact . | . . . . . Slashing . | . . . . . Piercing . | . . . . . Sneak Attacks . | . . . . . Combat Hostiles . | . . . . . Follow-up Attacks . | . . . . . Damage Inflicted 1239 | . . 81 892 266 Guns 117 | . . . 23 94 Cannons 165 | . . . . 165 Explosions 937 | . . 68 869 . Melee . | . . . . . Ramming 20 | . . 13 . 7 Kinetic 46 | . . . 23 23 Thermal 236 | . . . . 236 Explosive 937 | . . 68 869 . Electromagnetic . | . . . . . Impact . | . . . . . Slashing . | . . . . . Piercing . | . . . . . Highest Corruption . | . . . . . Average Corruption . | . . . . . Corruption Purged . | . . . . . Corruption Blocked . | . . . . . Overload Shots . | . . . . . Overflow Damage 46 | . . . 46 . Projectiles . | . . . . . Explosions 46 | . . . 46 . Melee . | . . . . . Knockbacks 1 | . . 1 . . Impact 1 | . . 1 . . Kinetic . | . . . . . Secondary . | . . . . . Self-Inflicted Damage 121 | . . 6 112 3 Shots 3 | . . . 3 . Rammed 3 | . . 2 . 1 Targets Rammed 3 | . . 2 . 1 Kicked . | . . . . . Crushed . | . . . . . Highest Temperature 148 | . . 5 13 148 Average Temperature 35 | . . 3 7 42 Received Heat Transfer 252 | . . 18 81 153 Siege Activations . | . . . . . Robots Corrupted . | . . . . . Combat Hostiles . | . . . . . Parts Fried . | . . . . . Impact Corruptions . | . . . . . Robots Melted . | . . . . . Combat Hostiles . | . . . . . Parts Melted . | . . . . . Heat Transferred 555 | . . . . 555 Parts Sabotaged . | . . . . . Parts Stolen . | . . . . . Parts Stripped . | . . . . . Power Chain Reactions . | . . . . . Alert | -11 -10 -10 -9 -8 ------- Run | Yrd Mat Min Mat Mat Peak Influence 417 | . 60 81 417 226 Initial 176 | . . 23 31 176 Average 135 | . 17 75 235 207 Maximum Alert Level 2 | . . . 2 1 Low Security (%) 66 | 100 100 100 36 30 Level 1 29 | . . . 51 69 Level 2 4 | . . . 11 . Level 3 . | . . . . . Level 4 . | . . . . . Level 5 . | . . . . . High Security . | . . . . . Max Security . | . . . . . Squads Dispatched 5 | . . . 3 2 Investigation 2 | . . . 1 1 Extermination . | . . . . . Reinforcement 3 | . . . 2 1 Assault . | . . . . . Garrison . | . . . . . Intercept . | . . . . . Searches Triggered . | . . . . . Construction Impeded 1 | . . . 1 . Haulers Reinforced . | . . . . . Active Scanning Responses . | . . . . . Cargo Convoy Interrupts . | . . . . . Stealth | -11 -10 -10 -9 -8 --------- Run | Yrd Mat Min Mat Mat Distress Signals 3 | . 1 . . 2 Communications Jammed . | . . . . . Distress Signals . | . . . . . Times Spotted 24 | . 4 1 10 9 Peak Tracking Total 6 | . 4 1 4 6 Tactical Retreats 1 | . 1 . . . Traps | -11 -10 -10 -9 -8 ------- Run | Yrd Mat Min Mat Mat Traps Triggered 1 | . . . . 1 Indirectly . | . . . . . Trap Hack Attempts . | . . . . . Triggered . | . . . . . Disarmed . | . . . . . Reprogrammed . | . . . . . Reused . | . . . . . Traps Extracted . | . . . . . Installed . | . . . . . Triggered . | . . . . . Machines | -11 -10 -10 -9 -8 ---------- Run | Yrd Mat Min Mat Mat Machines Disabled 3 | . . . 3 . Max in Single Turn 2 | . . . 2 . Machines Repaired . | . . . . . Machines Dismantled . | . . . . . Machines Sabotaged . | . . . . . Overloaded Fab Kills . | . . . . . Hacking | -11 -10 -10 -9 -8 --------- Run | Yrd Mat Min Mat Mat Machines Accessed 3 | . . . 3 . Terminals 2 | . . . 2 . Fabricators . | . . . . . Repair Stations . | . . . . . Recycling Units 1 | . . . 1 . Scanalyzers . | . . . . . Garrison Access . | . . . . . Total Hacks 9 | . . . 9 . Successful 6 | . . . 6 . Failed 2 | . . . 2 . Catastrophic 1 | . . . 1 . Database Lockouts 1 | . . . 1 . Manual . | . . . . . Terminals 7 | . . . 7 . Fabricators . | . . . . . Repair Stations . | . . . . . Recycling Units 2 | . . . 2 . Scanalyzers . | . . . . . Garrison Access . | . . . . . Terminal Hacks 5 | . . . 5 . Record 3 | . . . 3 . Prototype ID Bank 1 | . . . 1 . Alert Level 1 | . . . 1 . Fabricator Hacks . | . . . . . Repair Station Hacks . | . . . . . Recycling Unit Hacks 1 | . . . 1 . Retrieve Components 1 | . . . 1 . Scanalyzer . | . . . . . Garrison Access Hacks . | . . . . . Unauthorized Hacks . | . . . . . Terminals . | . . . . . Fabricators . | . . . . . Repair Stations . | . . . . . Recycling Units . | . . . . . Scanalyzers . | . . . . . Garrison Access . | . . . . . Data Cores Recovered . | . . . . . Used . | . . . . . Hacking Detections 2 | . . . 2 . Full Trace Events 1 | . . . 1 . Feedback Events . | . . . . . Feedback Blocked . | . . . . . Robot Schematics Acquired . | . . . . . Robots Built . | . . . . . Authchips . | . . . . . Time . | . . . . . Total Robot Build Rating . | . . . . . Part Schematics Acquired . | . . . . . Parts Built . | . . . . . Authchips . | . . . . . Time . | . . . . . Total Part Build Rating . | . . . . . Parts Repaired . | . . . . . Time . | . . . . . Parts Recycled . | . . . . . Recycled Matter . | . . . . . Retrieved Matter . | . . . . . Retrieved Components 3 | . . . 3 . Parts Scanalyzed . | . . . . . Part Schematics Acquired . | . . . . . Parts Damaged . | . . . . . Bothacking | -11 -10 -10 -9 -8 ------------ Run | Yrd Mat Min Mat Mat Used RIF Installer . | . . . . . Robots Hacked . | . . . . . Non-combat . | . . . . . Combat . | . . . . . Robot Hacks Applied . | . . . . . Relay Couplers Released . | . . . . . Fabnet Peak Effective % . | . . . . . Robots Rewired . | . . . . . Allies Hacked . | . . . . . Hacks Repelled . | . . . . . Allies | -11 -10 -10 -9 -8 -------- Run | Yrd Mat Min Mat Mat Total Allies . | . . . . . Largest Group . | . . . . . Highest-Rated Group . | . . . . . Highest-Rated Ally . | . . . . . Total Orders . | . . . . . Ally Attacks . | . . . . . Total Damage . | . . . . . Kills . | . . . . . Allies Corrupted . | . . . . . Allies Melted . | . . . . . Intel | -11 -10 -10 -9 -8 ------- Run | Yrd Mat Min Mat Mat Robot Analysis Total . | . . . . . Derelict Logs Recovered 1 | . . 1 . . Drone Launches . | . . . . . Drone Recoveries . | . . . . . Exploration | -11 -10 -10 -9 -8 ------------- Run | Yrd Mat Min Mat Mat Turns Passed 522 | 56 87 109 179 91 Spaces Moved 456 | 63 97 105 146 45 Core 33 | 30 . . . 3 Treads . | . . . . . Legs . | . . . . . Wheels 423 | 33 97 105 146 42 Hover . | . . . . . Flight . | . . . . . Fastest Speed 50 | 50 90 90 80 95 Average Speed 89 | 70 90 90 90 108 Slowest Speed 300 | 90 90 90 95 300 Overloaded Moves . | . . . . . Propulsion Burnouts . | . . . . . Robots Hopped . | . . . . . Cave-ins Triggered . | . . . . . Exploration Rate (%) 14 | 4 18 25 18 8 Regions Visited 4 Branch Regions 1 Pre-discovered Areas . | . . . . . Known Exits Taken 1 | . . 1 . . Unknown Exits Taken 3 | 1 1 . 1 . Scrap Searched . | . . . . . Spaces Dug . | . . . . . Terrain Destroyed 92 | . . 15 77 . Melee . | . . . . . Projectile . | . . . . . AOE 92 | . . 15 77 . Terrain Rammed . | . . . . . Walls Destroyed . | . . . . . Machines Disabled . | . . . . . Actions | -11 -10 -10 -9 -8 --------- Run | Yrd Mat Min Mat Mat Total 530 | 74 96 117 176 67 Wait 6 | . . 6 . . Move 452 | 62 96 104 145 45 Hop . | . . . . . Pick Up 15 | 6 . 1 6 2 Fast Attach . | . . . . . Attach 13 | 6 . 1 5 1 Detach 3 | . . 1 1 1 Swap . | . . . . . Drop . | . . . . . Fire 38 | . . 2 19 17 Melee . | . . . . . Ram 3 | . . 2 . 1 Kick . | . . . . . Crush . | . . . . . Escape Stasis . | . . . . . Rewire . | . . . . . Trap . | . . . . . Miscellaneous . | . . . . . Route ------- -11/Scrapyard -10/Materials -10/Mines -9/Materials -8/Materials History --------- Turn | Location | Event 3 | -11/Scrapyard | Discovered new exit (range 15) 57 | -11/Scrapyard | Entered Materials 88 | -10/Materials | Discovered new exit (range 7) 144 | -10/Materials | Entered Mines 151 | -10/Mines | Received a Rocket Launcher from a helpful Derelict 201 | -10/Mines | Identified exit to Materials 253 | -10/Mines | Entered Materials 253 | -9/Materials | Evolved 2 slots: Utility x2 309 | -9/Materials | Build established: Mutant 388 | -9/Materials | Central database locked down 415 | -9/Materials | Discovered new exit (range 16) 432 | -9/Materials | Entered another Materials area 432 | -8/Materials | Evolved 2 slots: Propulsion x1, Utility x1 523 | -8/Materials | Self-destructed Last Messages --------------- Triggered Alarm Trap. An alarm sounds. ALERT: Alarm triggered, dispatching investigation squad. K-01 Serf collects debris. Wheel destroyed. U-05 Engineer lays Concrete. Hadron Collector disabled. U-05 Engineer lays Concrete. K-01 Serf collects debris. U-05 Engineer lays Concrete. K-01 Serf collects debris. U-05 Engineer destroyed. U-05 Engineer lays Concrete. Ion Engine destroyed. K-01 Serf collects debris. G-47 Trooper destroyed. K-01 Serf collects debris. K-01 Serf destroyed. K-01 Serf collects debris. Map ----- +----------------------------------------------------+ | ?????????????????????????????????????????????????? | | ?????????????????????????????????????????????????? | | ?????????????????????????????????????????????????? | | ?????????????????????????????????????????????????? | | ?????????????????????????????????????????????????? | | ?????????????????????????????????????????????????? | | ?????????????????????????????????????????????????? | | ?????????????????????????????????????????????????? | | ?????????????????????????????????????????????????? | | ?????????????????????????????????????????????????? | | ?????????????????????????????????????????????????? | | ?????????????????????????????????????????????????? | | ?????????????????????????????????????????????????? | | ?????????????????????????????????????????????????? | | ?????????????????????????????????????????????????? | | ?????????????????????????????????????????????????? | | ?????????????????????????????????????????????????? | | ?????????????????????????????????????????????????? | | ?????????????????????????????????????????????????? | | ?????????????????????????????????????????????????? | | ????????????" ""??###############????????????????? | | ????????????? # """ #????????????????? | | ???????????????? + "Y" #????????????????? | | ??????????????????# #????????????????? | | ??????????????????# ##???????????????? | | ??????????????????# @ ""#??????????????? | | ##+#??????????????# !%""" T"#??????????????? | | #????????????## g!"""g ""#??????????????? | | #????????????+ |g""" g ##???????????????? | | #????????????# *! ##### ???????????? | | # +????? ??????# [ u #?????????? | | # #??? ????????+ w %g """ #?????????? | | # #?????????""?# """" ??????????? | | # ######## ????###+## """ +?????????? | | # # #????????? #u k ####? ???????????? | | # # ! #??????? ??#* ! #????????????????? | | # # """#??????????# !"""" #????????????????? | | + + """#??????????# """" #????????????????? | | # # """#??????????# u"""" #??#?????????????? | | # # #??#???????# #????????????????? | | # ####+###??????#???#! #????????????????? | | ### #??# ############## #????????????????? | | ??# #??# [ !=#### ?????????? | | ??# #??# ##############+##??? ??????????? | | ?? ??# #????????????????????########+??????????? | | ?? ?? #???#?#?????????????????????????????????? | | ? ?###????????????????????????????????????????? | | ??####?????????????? ????????????????????????????? | | ???????????????? ????????????????????????????????? | | #????????????????????????????????????????????????? | +----------------------------------------------------+ Best States ------------- Heat Dissipation 31 Energy Generation 10 Energy Capacity 250 Matter Stores 300 Matter Capacity 300 Sight Range 16 Terrain Scan Range 14 Terrain Scan Density 10 Evasion (%) 50 Item Schematics ----------------- None Robot Schematics ------------------ None Fabricated ------------ Nothing Alien Tech Used ----------------- None Achievements -------------- None Challenges ------------ None Game ------ Seed TiamatSystemBrace Manual? 0 Play Time 00:12:44 Cumulative 3.8 hours Start 2024.03.31 @ 17:44:12 End 2024.03.31 @ 17:54:28 Sessions 1 Manual Loads 0 Difficulty Rogue Special Mode None Game No. 8 Rogue 8 Adventurer 0 Explorer 0 Win Type - Total 0 Types 0/0/0/0/0/0/0/0/0 Lore% 5 Gallery% 8 Achievement% 10 Wizard Run 0 Options --------- Layout 1 ASCII 0 Keyboard 0 Movement Mouse Keybinds 0 Fullscreen 1 Font 24/Smallcaps Map View 50x35 Zoom Use 0% Tactical HUD 0 Map Filters NONE Filters NONE Steam 1 RUN: b80cc663-b47b-4a54-a99e-37486cb1c3a4